bitfinex/quotes_ETHUSD_20240917
["timestamp","ask_amount","ask_price","bid_price","bid_amount"]
[1726568621442,0.07606837,2319.8,2319.7,0.158]
[1726568624068,1.62175865,2319.8,2319.7,0.158]
[1726568624374,11.49695552,2319.8,2319.7,0.158]
[1726568624541,10.24317865,2319.8,2319.7,0.158]
[1726568624734,15.58007865,2319.8,2319.7,0.158]
[1726568624933,19.89078865,2319.8,2319.7,0.158]
[1726568625264,20.34178033,2319.8,2319.7,0.158]
[1726568625434,23.1817039,2319.8,2319.7,0.158]
[1726568626185,28.0424139,2319.8,2319.7,0.158]
[1726568626887,31.78793855,2319.8,2319.7,0.158]
[1726568629340,28.0424139,2319.8,2319.7,0.158]
[1726568629858,31.78793855,2319.8,2319.7,0.158]
[1726568630298,28.0424139,2319.8,2319.7,0.158]
[1726568635560,31.78482283,2319.8,2319.7,0.158]
[1726568635758,32.31941899,2319.8,2319.7,0.158]
[1726568635962,32.31714733,2319.8,2319.7,0.158]
[1726568636191,32.31722644,2319.8,2319.7,0.158]
[1726568637259,28.57701006,2319.8,2319.7,0.158]
[1726568637782,28.0424139,2319.8,2319.7,0.158]
[1726568641667,31.20607848,2319.8,2319.7,0.158]
[1726568642077,28.0424139,2319.8,2319.7,0.158]
[1726568643615,31.77974585,2319.8,2319.7,0.158]
[1726568644080,28.0424139,2319.8,2319.7,0.158]
[1726568644917,22.18601362,2319.8,2319.7,0.158]
[1726568645226,26.89480653,2319.8,2319.7,0.158]
[1726568646715,23.7317039,2319.8,2319.7,0.158]
[1726568647081,26.89479264,2319.8,2319.7,0.158]
[1726568647768,23.7317039,2319.8,2319.7,0.158]
[1726568650693,28.0424139,2319.8,2319.7,0.158]
[1726568653935,31.20586218,2319.8,2319.7,0.158]
[1726568654260,28.0424139,2319.8,2319.7,0.158]
[1726568663370,31.78275761,2319.8,2319.7,0.158]
[1726568665368,28.0424139,2319.8,2319.7,0.158]
[1726568665572,31.78522356,2319.8,2319.7,0.158]
[1726568665942,28.0424139,2319.8,2319.7,0.158]
[1726568667076,11.6244,2319.0,2318.9,2.2678]
[1726568667407,13.23645633,2319.0,2318.9,2.2678]
[1726568668409,17.54865633,2319.0,2318.9,2.2678]
[1726568668789,11.62476,2318.9,2318.8,0.0388433]
[1726568668972,11.69104903,2318.9,2318.8,0.0388433]
[1726568673206,13.76301622,2318.9,2318.8,0.0388433]
[1726568673924,16.93374885,2318.9,2318.8,0.0388433]
[1726568674077,21.24612885,2318.9,2318.8,0.0388433]
[1726568674884,18.07539622,2318.9,2318.8,0.0388433]
[1726568679338,16.00342903,2318.9,2318.8,2.3519433]
[1726568683094,16.4545382,2318.9,2318.8,2.3519433]
[1726568689769,12.1421582,2318.9,2318.8,2.3519433]
[1726568689973,0.5173982,2318.9,2318.8,6.6645133]
[1726568690269,0.06628903,2318.9,2318.8,11.06333173]
[1726568690472,0.06628903,2318.9,2318.8,12.6442079]
[1726568690623,11.78121,2319.6,2319.1,4.31197]
[1726568690823,11.78121,2319.6,2319.2,2.2692]
[1726568690824,0.05248917,2319.5,2319.2,2.2692]
[1726568691218,4.3111,2319.6,2319.2,2.2692]
[1726568691651,0.05248917,2319.5,2319.2,2.2692]
[1726568691941,0.05248917,2319.5,2319.2,2.93594442]
[1726568692145,0.05248917,2319.5,2319.3,2.4983]
[1726568692820,3.05248917,2319.5,2319.3,2.4983]
[1726568695248,0.05248917,2319.5,2319.3,2.4983]
[1726568695456,0.05248917,2319.5,2319.3,6.80985]
[1726568695655,0.05248917,2319.5,2319.4,2.3912]
[1726568695822,0.05284738,2319.5,2319.4,2.3912]
[1726568696027,0.45111178,2319.7,2319.4,2.3912]
[1726568696223,4.76212178,2319.7,2319.4,2.3912]
[1726568696552,3.05285759,2319.6,2319.4,2.3912]
[1726568696755,0.05285759,2319.6,2319.5,2.3061]
[1726568697074,0.05285759,2319.6,2319.5,6.61737]
[1726568697303,7.47,2320.0,2319.6,4.31104]
[1726568697599,9.98931816,2320.1,2319.7,2.3061]
[1726568697807,9.98931816,2320.1,2319.8,2.3061]
[1726568697994,5.67907816,2320.1,2319.9,2.3061]
[1726568699394,3.0,2320.0,2319.9,2.3061]
[1726568700501,5.67907816,2320.1,2320.0,6.58964]
[1726568700810,5.67907816,2320.1,2320.0,10.89998]
[1726568701013,5.22801353,2320.1,2320.0,10.89998]
[1726568702396,5.22801353,2320.1,2320.0,15.21032]
[1726568702696,5.22801353,2320.1,2320.0,12.64175003]
[1726568703274,5.27597011,2320.1,2320.0,12.64175003]
[1726568704081,5.22801353,2320.1,2320.0,12.64175003]
[1726568704893,13.77541981,2320.9,2320.3,2.4639]
[1726568704894,7.30924,2320.6,2320.3,2.4639]
[1726568705061,3.0,2320.6,2320.3,6.77368]
[1726568705459,3.0,2320.6,2320.4,2.4639]
[1726568705666,3.0,2320.7,2320.4,2.4639]
[1726568705864,3.0,2320.7,2320.4,6.77349]
[1726568706104,0.0480036,2320.6,2320.4,2.4639]
[1726568712602,4.3572436,2320.6,2320.4,2.4639]
[1726568712777,7.22413927,2320.6,2320.4,2.4639]
[1726568713415,5.67844899,2320.6,2320.4,2.4639]
[1726568716831,5.3563,2320.4,2319.7,4.31074]
[1726568716982,5.85565028,2320.3,2319.8,2.3428]
[1726568717188,4.31018,2320.1,2319.8,2.3428]
[1726568717588,0.0483783,2320.0,2319.8,2.3428]
[1726568718101,0.0483783,2320.0,2319.9,4.31053]
[1726568718409,5.85550028,2320.3,2319.9,4.31053]
[1726568718623,0.04823367,2320.0,2319.9,4.31053]
[1726568718814,4.30981,2320.3,2319.9,4.31053]
[1726568719022,0.04823367,2320.0,2319.8,6.65342]
[1726568719185,4.30981,2320.3,2319.9,4.31053]
[1726568719392,0.04820744,2319.9,2319.8,6.65347]
[1726568719592,5.85550028,2320.3,2319.8,6.65347]
[1726568719806,0.04821945,2319.9,2319.8,6.65347]
[1726568720089,0.04813904,2319.9,2319.8,6.65347]
[1726568720394,7.5968239,2320.3,2319.8,6.65347]
[1726568720395,4.31004,2320.2,2319.8,6.65347]
[1726568720595,0.04813904,2319.9,2319.8,6.65347]
[1726568720797,0.04813904,2319.9,2319.8,2.3428]
[1726568721138,5.85595028,2320.1,2319.8,2.3428]
[1726568721330,0.04814705,2319.9,2319.8,2.3428]
[1726568721545,4.31035,2320.0,2319.8,2.3428]
[1726568721831,0.04812471,2319.9,2319.8,2.3428]
[1726568722536,1.59381499,2319.9,2319.5,2.4036]
[1726568722744,4.31075,2319.8,2319.5,2.4036]
[1726568723034,4.31098,2319.7,2319.5,2.4036]
[1726568723405,0.04803769,2319.6,2319.5,2.4036]
[1726568724195,4.31073,2319.8,2319.5,2.4036]
[1726568724820,0.0480479,2319.7,2319.5,2.4036]
[1726568725225,4.31073,2319.8,2319.5,2.4036]
[1726568725419,0.04803769,2319.6,2319.5,2.4036]
[1726568725729,4.31073,2319.8,2319.5,2.4036]
[1726568726046,0.04803769,2319.6,2319.5,2.4036]
[1726568726199,5.2309714,2319.8,2319.5,2.4036]
[1726568726589,0.04798934,2319.7,2319.5,2.4036]
[1726568726844,4.31074,2319.8,2319.5,2.4036]
[1726568727004,0.04797913,2319.6,2319.5,2.4036]
[1726568727198,4.31074,2319.8,2319.5,2.4036]
[1726568727398,0.04797913,2319.6,2319.5,2.4036]
[1726568727592,4.31074,2319.8,2319.5,2.4036]
[1726568728000,0.04798934,2319.7,2319.5,2.4036]
[1726568728189,4.31074,2319.8,2319.5,2.4036]
[1726568728393,0.04797913,2319.6,2319.5,2.4036]
[1726568728590,4.31074,2319.8,2319.5,2.4036]
[1726568728845,0.04797913,2319.6,2319.5,2.4036]
[1726568729142,4.31074,2319.8,2319.5,2.4036]
[1726568729805,0.04798934,2319.7,2319.5,2.4036]
[1726568730001,4.31074,2319.8,2319.5,2.4036]
[1726568730198,0.04797513,2319.6,2319.5,2.4036]
[1726568730408,4.31074,2319.8,2319.5,2.4036]
[1726568730930,0.04779317,2319.7,2319.5,2.4036]
[1726568731321,0.04778296,2319.6,2319.5,2.4036]
[1726568731528,4.31062,2319.9,2319.5,2.4036]
[1726568731711,0.04778296,2319.6,2319.5,2.4036]
[1726568732102,4.31093,2319.7,2319.5,2.4036]
[1726568732302,0.04778296,2319.6,2319.5,2.4036]
[1726568739511,4.3109,2319.7,2319.5,2.4036]
[1726568739841,4.3588625,2319.6,2319.5,2.4036]
[1726568740008,4.3588625,2319.6,2319.2,6.57562]
[1726568740604,4.3588625,2319.6,2319.3,4.31164]
[1726568743454,0.0477825,2319.6,2319.3,4.31164]
[1726568745303,0.0477825,2319.6,2319.3,4.31154]
[1726568749231,0.0477825,2319.6,2319.5,4.31127]
[1726568749454,0.0477825,2319.6,2319.5,6.59397]
[1726568749771,0.04762769,2319.6,2319.5,6.59397]
[1726568749921,7.31057,2319.9,2319.5,6.59397]
[1726568750117,0.04764811,2319.8,2319.5,6.59397]
[1726568750951,0.04764811,2319.8,2319.5,2.2827]
[1726568750952,4.35836811,2319.8,2319.5,2.2827]
[1726568751123,3.0,2319.7,2319.5,2.2827]
[1726568751328,0.04762769,2319.6,2319.5,2.2827]
[1726568756238,0.04762769,2319.6,2319.3,7.243964]
[1726568756576,4.35871769,2319.6,2319.3,2.932434]
[1726568756756,4.35871769,2319.6,2319.3,2.2749]
[1726568757682,4.35871769,2319.6,2319.3,6.58654]
[1726568759186,0.04762769,2319.6,2319.3,6.58654]
[1726568760082,4.35870769,2319.6,2319.3,2.2749]
[1726568760268,4.35870769,2319.6,2319.2,4.3117]
[1726568761283,0.04762769,2319.6,2319.3,4.31161]
[1726568762374,4.35871769,2319.6,2319.3,4.31161]
[1726568763955,4.35871769,2319.6,2319.2,4.31175]
[1726568764585,0.04762769,2319.6,2319.2,4.31168]
[1726568764879,0.04762769,2319.6,2319.5,6.58487]
[1726568765081,0.04762769,2319.6,2319.5,2.2736]
[1726568767083,0.04762769,2319.6,2319.3,6.605]
[1726568767792,4.35871769,2319.6,2319.2,4.985218]
[1726568768086,5.85755974,2319.3,2318.9,4.31228]
[1726568768445,0.04766436,2319.2,2318.9,4.31228]
[1726568768846,5.85755974,2319.3,2318.9,4.31228]
[1726568769157,4.31169,2319.3,2318.9,4.31228]
[1726568769469,0.04764474,2319.2,2318.9,4.31228]
[1726568769672,4.35947474,2319.2,2318.8,6.6447833]
[1726568769874,4.31183,2319.2,2318.8,6.6447833]
[1726568770088,0.04763453,2319.1,2318.8,6.6447833]
[1726568770907,0.04763453,2319.1,2318.8,0.0388433]
[1726568770908,8.29753427,2319.1,2318.8,0.0388433]
[1726568771187,9.5584707,2319.1,2318.8,0.0388433]
[1726568771942,1.54586974,2318.9,2318.8,0.0388433]
[1726568772140,8.2380749,2318.9,2318.8,0.0388433]
[1726568772845,6.69220516,2318.9,2318.8,0.0388433]
[1726568773445,2.37982516,2318.9,2318.8,0.0388433]
[1726568778088,8.2380749,2318.9,2318.8,0.0388433]
[1726568778388,11.91540625,2318.9,2318.8,0.0388433]
[1726568778789,16.22778625,2318.9,2318.8,0.0388433]
[1726568788486,20.54016625,2318.9,2318.8,0.0388433]
[1726568789178,25.40254625,2318.9,2318.8,0.0388433]
[1726568811263,28.56427385,2318.9,2318.8,0.0388433]
[1726568812213,28.56588274,2318.9,2318.8,0.0388433]
[1726568812405,30.20787854,2318.9,2318.8,0.0388433]
[1726568812602,34.75687854,2318.9,2318.8,0.0388433]
[1726568812945,30.20787854,2318.9,2318.8,0.0388433]
[1726568814345,33.45161747,2318.9,2318.8,0.0388433]
[1726568814655,33.45518343,2318.9,2318.8,0.0388433]
[1726568818051,29.71492625,2318.9,2318.8,0.0388433]
[1726568820442,29.71492625,2318.9,2318.2,2.3526]
[1726568820443,12.9405,2318.3,2318.2,2.3526]
[1726568820663,15.94107,2318.2,2318.1,0.0388433]
[1726568821022,15.98573112,2318.2,2318.1,0.0388433]
[1726568825384,20.84942112,2318.2,2318.1,0.0388433]
[1726568825671,17.66343986,2318.2,2318.1,0.0388433]
[1726568825980,20.83285149,2318.2,2318.1,0.0388433]
[1726568826573,25.14654149,2318.2,2318.1,0.0388433]
[1726568826736,25.14732494,2318.2,2318.1,1e-08]
[1726568827069,20.83363494,2318.2,2318.1,1e-08]
[1726568827771,20.8332573,2318.2,2318.1,1e-08]
[1726568827966,17.66343986,2318.2,2318.1,1e-08]
[1726568828270,20.8332573,2318.2,2318.1,1e-08]
[1726568832512,20.8331576,2318.2,2318.1,1e-08]
[1726568832664,20.83315462,2318.2,2318.1,1e-08]
[1726568835466,25.14684462,2318.2,2318.1,1e-08]
[1726568835665,20.83315462,2318.2,2318.1,1e-08]
[1726568837417,7.52853689,2318.2,2318.1,2.29870001]
[1726568837578,0.04466112,2318.2,2318.1,2.29870001]
[1726568838021,4.76486948,2318.4,2318.1,2.29870001]
[1726568838185,0.45146948,2318.4,2318.2,4.39987182]
[1726568838377,4.31257,2318.8,2318.4,2.2572]
[1726568838706,0.4514649,2318.8,2318.6,4.31294]
[1726568838918,10.64018577,2319.2,2318.7,2.2572]
[1726568838919,11.78184,2319.2,2318.7,2.2572]
[1726568839070,5.85790974,2319.1,2318.7,2.2572]
[1726568839475,10.17002974,2319.1,2318.7,2.2572]
[1726568839879,3.0,2319.0,2318.7,2.2572]
[1726568841010,0.03822427,2318.9,2318.7,2.2572]
[1726568842398,0.03822427,2318.9,2318.7,0.66565674]
[1726568842615,0.03822427,2318.9,2318.8,2.3653]
[1726568843904,5.89647401,2318.9,2318.8,2.3653]
[1726568844233,8.85824974,2318.9,2318.8,2.3653]
[1726568844436,8.90191716,2318.9,2318.8,2.3653]
[1726568844938,13.21429716,2318.9,2318.8,2.3653]
[1726568848305,13.17062974,2318.9,2318.8,2.3653]
[1726568849591,8.85824974,2318.9,2318.8,2.3653]
[1726568852140,0.45145468,2319.2,2318.8,2.3653]
[1726568852433,3.0,2319.0,2318.8,2.60183]
[1726568852648,3.0,2319.0,2318.8,2.3653]
[1726568854461,4.54586974,2319.0,2318.8,2.3653]
[1726568854763,8.85806974,2319.0,2318.8,2.3653]
[1726568856873,7.31267,2318.8,2318.4,2.274]
[1726568857086,8.85853974,2318.8,2318.4,6.58729]
[1726568857281,8.85853974,2318.8,2318.5,2.274]
[1726568857640,4.54586974,2318.8,2318.5,2.274]
[1726568858056,8.85850974,2318.8,2318.5,2.274]
[1726568859563,3.0,2318.8,2318.7,2.3439]
[1726568860003,3.0,2318.9,2318.7,2.3439]
[1726568863053,4.31241,2318.9,2318.7,2.3439]
[1726568863509,3.0,2318.8,2318.7,2.3439]
[1726568863815,8.85807974,2319.0,2318.7,2.3439]
[1726568864304,4.54586974,2319.0,2318.7,2.3439]
[1726568864513,4.54586974,2319.0,2318.7,6.65662]
[1726568864673,8.85808974,2319.0,2318.7,6.65662]
[1726568864857,8.85808974,2319.0,2318.7,2.3439]
[1726568865060,7.31222,2319.0,2318.7,2.3439]
[1726568876030,4.31239,2318.9,2318.7,2.3439]
[1726568876199,3.0,2318.8,2318.7,2.3439]
[1726568878524,3.0,2318.9,2318.7,2.3439]
[1726568879128,7.3124,2318.9,2318.7,2.3439]
[1726568881448,4.31294,2318.6,2318.3,2.4795]
[1726568881634,4.31321,2318.5,2318.3,2.4795]
[1726568882058,8.62652,2318.5,2318.3,2.4795]
[1726568882346,5.85917974,2318.4,2318.3,2.4795]
[1726568882548,6.87641871,2318.4,2318.0,2.36]
[1726568883007,4.31352,2318.3,2318.0,2.36]
[1726568884118,5.85956974,2318.2,2318.0,2.36]
[1726568885819,2.91174261,2318.2,2317.8,2.33]
[1726568886020,3.0,2318.1,2317.8,2.33]
[1726568886339,7.31389,2318.1,2317.8,2.33]
[1726568886517,3.0,2318.2,2318.0,2.33]
[1726568887749,7.31369,2318.2,2318.0,2.33]
[1726568888419,8.85955974,2318.2,2318.0,2.33]
[1726568888749,8.85955974,2318.2,2317.8,6.65249]
[1726568889461,4.3139,2318.1,2317.8,2.3382]
[1726568891255,4.31391,2318.1,2317.8,2.3382]
[1726568892863,8.62797,2318.1,2317.8,2.3382]
[1726568893068,4.31391,2318.1,2317.8,2.3382]
[1726568893368,8.62789,2318.1,2317.8,2.3382]
[1726568894122,4.31391,2318.1,2317.8,2.3382]
[1726568896533,8.85955974,2318.2,2317.8,2.3382]
[1726568896737,4.31389,2318.1,2317.8,2.3382]
[1726568897139,3.0,2318.2,2317.9,4.31421]
[1726568897365,3.0,2318.2,2318.0,2.2677]
[1726568897989,3.0,2317.9,2317.0,2.412]
[1726568898198,11.13905974,2317.5,2316.7,0.0388433]
[1726568898346,11.13905974,2317.5,2315.6,7.34]
[1726568898347,8.63594,2315.9,2315.6,7.34]
[1726568898544,8.63594,2315.9,2315.3,1.83363037]
[1726568898545,9.1878,2315.4,2315.3,0.0388433]
[1726568898861,14.44841533,2315.4,2315.3,4.0388433]
[1726568899057,2.26052409,2315.4,2315.3,4.0388433]
[1726568899387,3.74299737,2316.0,2315.3,4.0388433]
[1726568899388,1.80869202,2316.0,2315.3,4.0388433]
[1726568899677,6.80639383,2316.5,2315.7,2.4907]
[1726568899844,2.26052409,2316.6,2315.9,4.3178]
[1726568900042,2.26052409,2316.6,2315.8,0.08634443]
[1726568900043,1.54586974,2316.5,2316.0,0.08634163]
[1726568900305,9.57700409,2316.7,2315.8,4.31814]
[1726568900306,5.26052409,2316.8,2315.8,0.0048628]
[1726568900456,1.54586974,2315.9,2315.8,0.0048628]
[1726568901084,9.75018871,2315.9,2315.8,0.0048628]
[1726568901395,1.54586974,2315.9,2315.8,0.0048628]
[1726568902112,4.31783,2316.0,2315.8,0.0048628]
[1726568902113,3.0,2316.1,2315.8,0.0048628]
[1726568902958,3.0,2316.2,2315.8,0.0048628]
[1726568905572,7.31746,2316.2,2315.8,0.0048628]
[1726568905767,2.2849,2316.5,2315.8,0.0048628]
[1726568905768,3.0,2316.4,2315.8,0.0048628]
[1726568906275,3.0,2316.2,2315.8,0.0048628]
[1726568908412,4.31763,2316.1,2315.8,0.0048628]
[1726568908919,3.0,2316.0,2315.8,0.0048628]
[1726568909121,7.31788,2316.0,2315.8,0.0048628]
[1726568909819,4.31797,2315.9,2315.8,0.0048628]
[1726568910121,3.0,2316.0,2315.8,0.0048628]
[1726568910122,7.31781,2316.0,2315.8,0.0048628]
[1726568910697,4.31797,2315.9,2315.8,0.0048628]
[1726568911843,4.24460928,2316.0,2315.8,0.0048628]
[1726568912414,3.36139656,2316.3,2315.8,0.0048628]
[1726568912415,3.0,2316.2,2315.8,0.0048628]
[1726568912750,3.0,2316.2,2315.9,2.4903]
[1726568912902,7.31751,2316.2,2315.9,2.4903]
[1726568913113,7.31789,2316.0,2315.8,0.0048628]
[1726568913455,4.163562,2316.0,2315.8,0.0048628]
[1726568914715,8.481352,2316.0,2315.8,0.0048628]
[1726568916910,4.31797,2315.9,2315.8,0.0048628]
[1726568917814,8.481352,2316.0,2315.8,0.0048628]
[1726568918044,12.799232,2316.0,2315.8,0.0048628]
[1726568918214,8.481352,2316.0,2315.8,0.0048628]
[1726568918617,12.799242,2316.0,2315.8,0.0048628]
[1726568918828,12.799282,2316.0,2315.8,0.0048628]
[1726568919035,5.5978982,2315.9,2315.8,0.0048628]
[1726568919237,8.5978982,2315.9,2315.8,0.0048628]
[1726568919671,16.27726476,2315.9,2315.8,0.0048628]
[1726568923169,8.5978982,2315.9,2315.8,0.0048628]
[1726568923840,12.9158682,2315.9,2315.8,0.0048628]
[1726568924348,8.5978982,2315.9,2315.8,0.0048628]
[1726568925482,12.9158682,2315.9,2315.8,0.0048628]
[1726568925642,8.5978982,2315.9,2315.8,0.0048628]
[1726568925843,12.9158682,2315.9,2315.8,0.0048628]
[1726568926045,8.5978982,2315.9,2315.8,0.0048628]
[1726568926878,12.9158682,2315.9,2315.8,0.0048628]
[1726568927040,8.5978982,2315.9,2315.8,0.0048628]
[1726568927243,4.31795,2316.0,2315.8,0.0048628]
[1726568927244,7.31786,2316.0,2315.8,0.0048628]
[1726568928080,3.0,2316.0,2315.8,0.0048628]
[1726568929200,7.31781,2316.0,2315.8,0.0048628]
[1726568931147,11.63573,2316.0,2315.8,0.0048628]
[1726568931360,8.481383,2316.0,2315.8,0.0048628]
[1726568932287,3.0,2316.1,2315.8,0.0048628]
[1726568932489,0.4516273,2316.3,2316.0,4.31764]
[1726568932804,4.31613,2316.9,2316.0,4.31764]
[1726568932805,7.47,2316.8,2316.3,4.31715]
[1726568932974,4.31631,2316.8,2316.3,4.40348554]
[1726568933174,4.76796375,2316.8,2316.3,4.40348554]
[1726568933358,0.45165375,2316.8,2316.3,0.08633554]
[1726568933682,0.45165375,2316.8,2316.6,2.2759]
[1726568934062,4.31592,2317.0,2316.6,2.2759]
[1726568934243,4.31601,2317.0,2316.6,2.2759]
[1726568935096,0.45166442,2317.1,2316.6,2.2759]
[1726568935263,0.45166442,2317.1,2316.7,4.40270676]
[1726568935467,0.45166442,2317.1,2316.9,2.3505]
[1726568935787,4.31527,2317.4,2316.9,6.66657]
[1726568935994,4.31494,2317.6,2317.0,4.31586]
[1726568936146,4.31494,2317.6,2317.1,4.31571]
[1726568936581,4.31491,2317.6,2317.1,4.31571]
[1726568936959,4.31491,2317.6,2317.1,8.63133]
[1726568937156,4.31491,2317.6,2317.1,4.31562]
[1726568938264,4.31491,2317.6,2317.1,8.63124]
[1726568938466,4.31491,2317.6,2317.2,2.4033]
[1726568938688,3.0,2317.5,2317.2,2.4033]
[1726568940707,4.31491,2317.6,2317.2,2.4033]
[1726568940708,3.36139656,2317.6,2317.2,2.4033]
[1726568940911,4.31526,2317.4,2316.8,2.3986]
[1726568941204,4.31537,2317.3,2316.8,6.71479]
[1726568941417,8.63122,2317.2,2316.8,2.3986]
[1726568941638,4.31577,2317.1,2316.8,2.3986]
[1726568941842,4.31631,2316.8,2316.4,2.3467]
[1726568942604,4.3165,2316.7,2316.4,2.3467]
[1726568943641,4.31631,2316.8,2316.4,2.3467]
[1726568944002,8.63271,2316.8,2316.4,2.3467]
[1726568944202,8.63273,2316.8,2316.4,2.3467]
[1726568944639,4.31631,2316.8,2316.4,2.3467]
[1726568944842,8.63273,2316.8,2316.4,2.3467]
[1726568945137,4.31631,2316.8,2316.4,2.3467]
[1726568945478,8.63273,2316.8,2316.4,2.3467]
[1726568945972,4.31618,2316.9,2316.4,6.66363]
[1726568946273,4.31618,2316.9,2316.4,10.98057]
[1726568946869,4.31618,2316.9,2316.5,0.08632496]
[1726568947671,4.31618,2316.9,2316.5,4.31682]
[1726568948030,4.31605,2317.0,2316.5,4.31682]
[1726568948230,4.31614,2316.9,2316.4,6.74988544]
[1726568948476,4.31614,2316.9,2316.4,7.19360977]
[1726568948682,4.31631,2316.8,2316.4,7.10728433]
[1726568948866,4.31631,2316.8,2316.4,6.66356]
[1726568950463,4.31631,2316.8,2316.4,2.3467]
[1726568950858,4.31659,2316.7,2316.4,2.3467]
[1726568951739,4.31675,2316.6,2316.4,2.3467]
[1726568952089,4.3165,2316.7,2316.4,2.3467]
[1726568952637,4.31669,2316.6,2316.4,2.3467]
[1726568952869,4.31685,2316.5,2316.1,7.510934]
[1726568953106,4.31685,2316.5,2316.1,7.510954]
[1726568955125,4.31726,2316.3,2315.9,2.7332]
[1726568955329,4.31749,2316.2,2315.9,2.3006]
[1726568955624,4.31727,2316.3,2315.9,6.61857]
[1726568955980,4.31742,2316.2,2315.9,2.3006]
[1726568956175,4.31726,2316.3,2315.9,7.05116]
[1726568957417,4.31749,2316.2,2315.9,2.3006]
[1726568957986,4.31768,2316.1,2315.8,0.0048628]
[1726568958196,4.31762,2316.1,2315.8,0.0048628]
[1726568959128,8.63532,2316.1,2315.8,0.0048628]
[1726568959430,4.31762,2316.1,2315.8,0.0048628]
[1726568959887,4.31737,2316.3,2315.8,0.0048628]
[1726568960086,8.08477666,2316.5,2316.1,2.3122]
[1726568960087,4.31695,2316.5,2316.1,2.3122]
[1726568960296,11.78619,2316.9,2316.4,4.31695]
[1726568960580,4.31619,2316.9,2316.4,4.75734896]
[1726568960745,4.31619,2316.9,2316.5,2.3122]
[1726568961432,8.63245,2316.9,2316.5,2.3122]
[1726568961629,4.31633,2316.8,2316.5,2.3122]
[1726568962233,8.63245,2316.9,2316.5,2.3122]
[1726568962444,4.31619,2316.9,2316.5,2.3122]
[1726568962852,4.31633,2316.8,2316.5,2.3122]
[1726568963280,8.63247,2316.9,2316.5,2.3122]
[1726568963584,7.02248635,2317.1,2316.7,4.31643]
[1726568963738,0.45167539,2317.1,2316.7,4.31643]
[1726568964084,0.45167539,2317.1,2316.9,4.31601]
[1726568964291,8.63048,2317.4,2316.9,4.90445177]
[1726568964490,8.63048,2317.4,2316.9,4.31601]
[1726568964711,4.31539,2317.3,2316.9,4.31601]
[1726568964850,4.31539,2317.3,2316.8,7.07225]
[1726568966489,4.31539,2317.3,2316.8,11.38846]
[1726568966856,4.31539,2317.3,2316.8,11.38842]
[1726568967058,4.31539,2317.3,2316.8,12.527262]
[1726568968084,4.31539,2317.3,2316.8,8.211052]
[1726568968800,4.31539,2317.3,2316.8,12.527252]
[1726568968966,4.31539,2317.3,2316.8,12.094652]
[1726568969166,4.31539,2317.3,2316.8,8.211042]
[1726568969369,4.31539,2317.3,2316.9,0.8211042]
[1726568970566,4.31574,2317.1,2316.8,3.462242]
[1726568970757,4.31574,2317.1,2316.6,10.88778]
[1726568970993,4.31601,2317.0,2316.6,2.2547]
[1726568971194,4.31618,2316.9,2316.5,0.4326]
[1726568971514,4.31656,2316.7,2316.4,2.2547]
[1726568971810,4.31676,2316.6,2316.2,2.2547]
[1726568972028,4.31676,2316.6,2316.2,2.911919]
[1726568972185,4.31676,2316.6,2316.2,7.661889]
[1726568972887,4.31651,2316.7,2316.3,4.74978]
[1726568973287,4.31669,2316.6,2316.3,0.4326]
[1726568973497,4.31651,2316.7,2316.3,0.4326]
[1726568973825,4.31667,2316.6,2316.3,0.4326]
[1726568975309,4.31651,2316.7,2316.3,4.7498]
[1726568976472,4.31669,2316.6,2316.3,0.4326]
[1726568976673,4.31651,2316.7,2316.3,4.74982]
[1726568977277,4.31675,2316.6,2316.3,0.4326]
[1726568978182,4.31652,2316.7,2316.3,4.74982]
[1726568978380,6.57642524,2316.7,2316.3,4.74982]
[1726568978592,10.89299524,2316.7,2316.3,4.74982]
[1726568978799,10.89299524,2316.7,2316.3,0.4326]
[1726568979322,10.89301524,2316.7,2316.3,0.4326]
[1726568979736,10.89303524,2316.7,2316.3,0.4326]
[1726568979939,2.2631502,2316.7,2316.4,4.31701]
[1726568980128,9.5794502,2316.8,2316.4,4.31701]
[1726568980331,6.5796502,2316.7,2316.3,4.74971]
[1726568980729,4.31667,2316.6,2316.3,0.4326]
[1726568982463,4.317,2316.5,2316.3,0.4326]
[1726568982642,4.31667,2316.6,2316.3,0.4326]
[1726568982820,8.63343,2316.6,2316.3,0.4326]
[1726568983252,4.31667,2316.6,2316.3,0.4326]
[1726568983759,6.5798202,2316.6,2316.3,0.4326]
[1726568984117,2.2631502,2316.6,2316.3,4.74977]
[1726568984319,6.5796302,2316.7,2316.3,4.74977]
[1726568984757,6.58075432,2316.7,2316.3,4.74977]
[1726568985566,2.26427432,2316.6,2316.3,4.74977]
[1726568985769,2.26479038,2316.6,2316.3,4.74977]
[1726568989586,2.26511978,2316.6,2316.3,4.74977]
[1726568992391,6.58179978,2316.6,2316.3,4.74977]
[1726568992686,2.26511978,2316.6,2316.3,4.74977]
[1726568993892,4.31653,2316.7,2316.3,4.74977]
[1726568994056,2.26514045,2316.6,2316.3,4.74977]
[1726568994376,2.26514046,2316.7,2316.4,4.31687]
[1726568994582,2.26514046,2316.7,2316.5,4.31677]
[1726568995750,2.26514046,2316.7,2316.4,4.317]
[1726568996491,2.26514046,2316.6,2316.4,4.317]
[1726568996698,6.58163046,2316.7,2316.4,4.317]
[1726568996992,2.26514046,2316.6,2316.4,4.317]
[1726568997786,2.26514046,2316.7,2316.4,4.317]
[1726568997952,2.26514046,2316.7,2316.5,2.3855]
[1726568998795,2.26514046,2316.6,2316.5,2.3855]
[1726568999765,2.26514046,2316.6,2316.4,4.31698]
[1726569000595,2.26514046,2316.6,2316.3,4.7497]
[1726569000902,2.26514046,2316.6,2316.4,4.31692]
[1726569001103,2.26514046,2316.7,2316.5,11.1305]
[1726569001313,2.26514046,2316.8,2316.7,8.63296]
[1726569001591,2.26514046,2317.0,2316.9,8.63222]
[1726569001793,2.26514046,2317.1,2316.9,4.31611]
[1726569002325,2.26514046,2317.1,2317.0,4.31592]